{"text_format":"1","workbook":"xlsx","n_sheets":2,"sheets":["Utilisation","Abaque"],"not_rendered":{"charts":10,"images":0,"macros":1,"external_links":0,"defined_names":1,"comments":0,"pivot_tables":0},"unopened":[],"bounds":{"document_bytes":16777216,"sheet_cells":100000,"rows_first":2000,"rows_last":500,"rows_between":2000,"halvings":0,"cell_chars":16384,"cell_head_chars":4096},"cells_cut":0,"cells_raw":0,"read":"whole","date_system":"1900"}

{"sheet":"Utilisation","index":0,"n_rows":33,"n_cols":4,"rows_kept":33,"cut":false,"hidden":false,"merged":[]}
[]
[]
[null,"Outil Abaque de Noiret"]
[]
[]
[null,"Il s'agit d'un outil d'aide à la décision qui permet d'orienter le choix d'une politiqyue de"]
[null,"maintenance sur un équipement de production."]
[null,"Le calcul tient compte des caractéristiques de l'équipement et de son utilisation."]
[]
[]
[]
[null,"1° Effacer les éventuelles tracés existants (touche RAZ lignes)"]
[]
[null,"2° Saisir l'âge de l'équipement à l'aide de la liste déroulante"]
[]
[null,"3° Pour chacune des 8 rubriques, cochez le cas qui vous paraît être le"]
[null,"    plus représentatif de votre équipement."]
[]
[null,"4° Revenez au haut de la feuille puis cliquez sur la touche TRACER"]
[null,"    Le parcours de l'abaque est alors automatique et aboutit à la situation"]
[null,"    finale recommandée :"]
[]
[null,null,null,"  Préventif recommandé"]
[]
[null,null,null,"  Pas de préférence"]
[]
[null,null,null,"  Préventif non nécessaire"]
[]
[null,"   Le score total s'affiche à coté de la recommandation"]
[null,"   A chaque étape, le score intermédiaire s'affiche."]
[]
[null,"Attention : il ne faut pas modifier ou déplacer les graphiques, ni changer les données de "]
[null,"la partie droite de l'outil."]

{"sheet":"Abaque","index":1,"n_rows":117,"n_cols":92,"rows_kept":117,"cut":false,"hidden":false,"merged":[[95,18,97,19],[6,22,6,23],[5,85,5,86],[5,87,5,88],[93,18,93,19]]}
[]
[null,null,null,null,null,"AGE",null,null,null,null,null,null,null,"INTERDEPENDANCE"]
[]
[]
[]
[null,null,null,null,null,null,null,null,null,null,null,null,null,null,null,null,null,null,null,null,null,null,null,null,null,null,70,60,50,40,30,20,10,null,null,5,25,25,45,null,null,5,15,25,35,45,55,null,null,20,40,50,70,90,null,null,5,10,15,20,25,30,null,null,10,35,55,null,null,75,175,250,null,null,25,100,150,225,null,null,null,null,null,null,null,"A",null,"B"]
[null,null,null,null,null,null,null,null,null,null,null,null,null,null,null,null,null,null,null,null,null,null,"Age du matériel",null,null,"Interdépendance",null,null,null,null,null,null,null,null,"Complexité",null,null,null,null,null,"Coût",null,null,null,null,null,null,null,"Origine",null,null,null,null,null,null,"Robustesse",null,null,null,null,null,null,null,"Perte de produit",null,null,null,null,"Conditions de travail",null,null,null,null,"Délai",null,null,null,null,null,"Résultat",null,null,null,null,null,"xA","yA","xB","yB",null,"Coef","Ord Orig"]
[null,null,null,null,null,null,null,null,null,null,null,null,null,null,null,null,null,null,null,null,null,null,20,{"$f":"((10-90)/(20-0))*(W8-0)+90","v":10},null,160,{"$f":"((90-10)/(160-80))*(Z8-80)+10","v":90},null,null,null,null,null,null,null,160,{"$f":"((165-25)/(160-20))*(AI8-20)+25","v":165},{"$f":"((165-25)/(160-20))*(AI8-20)+45","v":185},{"$f":"((165-25)/(160-20))*(AI8-20)+46","v":186},{"$f":"((165-25)/(160-20))*(AI8-20)+65","v":205},null,260,null,null,null,null,null,{"$f":"((205-25)/(210-30))*($AO8-50-30)+25","v":205},null,260,{"$f":"((280-50)/(260-30))*($AW8-30)+50","v":280},{"$f":"((300-70)/(260-30))*($AW8-30)+70","v":300},{"$f":"((310-80)/(260-30))*($AW8-30)+80","v":310},{"$f":"((330-100)/(260-30))*($AW8-30)+100","v":330},{"$f":"((350-120)/(260-30))*($AW8-30)+120","v":350},null,380,null,null,null,null,null,{"$f":"((350-50)/(380-80))*($BD8-80)+50","v":350},null,380,{"$f":"((390-65)/(380-55))*($BL8-55)+65","v":390},{"$f":"((415-90)/(380-55))*($BL8-55)+90","v":415},{"$f":"((435-110)/(380-55))*($BL8-55)+110","v":435},null,140,{"$f":"((435-65)/(510-140))*($BQ8-140)+65","v":65},null,null,null,140,{"$f":"((710-165)/(685-140))*($BV8-140)+165","v":165},{"$f":"((785-240)/(685-140))*($BV8-140)+240","v":240},{"$f":"((710-165)/(835-290))*($BV8-140)+290","v":290},{"$f":"((710-165)/(910-365))*($BV8-140)+365","v":365},null,0,510,560,null,"Ages","0 à 20",300,51,540,51,null,{"$f":"(CI8-CK8)/(CH8-CJ8)","v":0},{"$f":"CI8-CM8*CH8","v":51}]
[null,null,null,null,null,null,null,null,null,null,null,null,null,null,null,null,null,null,null,null,null,null,19,{"$f":"((10-90)/(20-0))*(W9-0)+90","v":14},null,155,85,null,null,null,null,null,null,null,155,{"$f":"((165-25)/(160-20))*(AI9-20)+25","v":160},{"$f":"((165-25)/(160-20))*(AI9-20)+45","v":180},{"$f":"((165-25)/(160-20))*(AI9-20)+46","v":181},{"$f":"((165-25)/(160-20))*(AI9-20)+65","v":200},null,250,null,null,null,null,{"$f":"((205-25)/(210-30))*($AO9-40-30)+25","v":205},195,null,250,{"$f":"((280-50)/(260-30))*($AW9-30)+50","v":270},{"$f":"((300-70)/(260-30))*($AW9-30)+70","v":290},{"$f":"((310-80)/(260-30))*($AW9-30)+80","v":300},320,{"$f":"((350-120)/(260-30))*($AW9-30)+120","v":340},null,375,null,null,null,null,{"$f":"((350-50)/(375-75))*($BD9-75)+50","v":350},{"$f":"((350-50)/(380-80))*($BD9-80)+50","v":345},null,375,{"$f":"((390-65)/(380-55))*($BL9-55)+65","v":385},{"$f":"((415-90)/(380-55))*($BL9-55)+90","v":410},{"$f":"((435-110)/(380-55))*($BL9-55)+110","v":430},null,145,{"$f":"((435-65)/(510-140))*($BQ9-140)+65","v":70},null,null,null,145,{"$f":"((710-165)/(685-140))*($BV9-140)+165","v":170},{"$f":"((785-240)/(685-140))*($BV9-140)+240","v":245},{"$f":"((710-165)/(835-290))*($BV9-140)+290","v":295},{"$f":"((710-165)/(910-365))*($BV9-140)+365","v":370},null,10,{"$f":"$CC$8","v":510},{"$f":"$CD$8","v":560},null,null,"points",540,51,300,246,null,{"$f":"(CI9-CK9)/(CH9-CJ9)","v":-0.8125},{"$f":"CI9-CM9*CH9","v":489.75}]
[null,null,null,null,null,null,null,null,null,null,null,null,null,null,null,null,null,null,null,null,null,null,18,18,null,150,80,{"$f":"((90-10)/(160-80))*(Z10+10-80)+10","v":90},null,null,null,null,null,null,150,155,175,176,195,null,240,null,null,null,{"$f":"((205-25)/(210-30))*($AO10-30-30)+25","v":205},195,185,null,240,260,280,290,310,330,null,370,null,null,null,{"$f":"((350-50)/(370-70))*($BD10-70)+50","v":350},345,340,null,370,380,405,425,null,150,75,null,null,null,150,175,250,300,375,null,20,{"$f":"$CC$8","v":510},{"$f":"$CD$8","v":560},null,"Interdépendance",1,780,51,916.5,247.5,null,{"$f":"(CI10-CK10)/(CH10-CJ10)","v":1.4395604395604396},{"$f":"CI10-CM10*CH10","v":-1071.8571428571429}]
[null,null,null,null,null,null,null,null,null,null,null,null,null,null,null,null,null,null,null,null,5,null,17,22,null,145,75,85,null,null,null,null,null,null,145,150,170,171,190,null,230,null,null,{"$f":"((205-25)/(210-30))*($AO11-20-30)+25","v":205},195,185,175,null,230,250,270,280,300,320,null,365,null,null,{"$f":"((350-50)/(365-65))*($BD11-65)+50","v":350},345,340,335,null,365,375,400,420,null,155,80,null,null,null,155,180,255,305,380,null,30,510,560,null,null,2,797.25,51,933.75,247.5,null,1.4395604395604396,-1096.6895604395604]
[null,null,null,null,null,null,null,null,null,null,null,null,null,null,null,null,null,null,null,null,null,null,16,26,null,140,70,80,{"$f":"((90-10)/(160-80))*(Z12+20-80)+10","v":90},null,null,null,null,null,140,145,165,166,185,null,220,null,{"$f":"((205-25)/(210-30))*($AO12-10-30)+25","v":205},195,185,175,165,null,220,240,260,270,290,310,null,360,null,{"$f":"((350-50)/(360-60))*($BD12-60)+50","v":350},345,340,335,330,null,360,370,395,415,null,160,85,null,null,null,160,185,260,310,385,null,40,510,560,null,null,3,813.75,51,951,247.5,null,1.4316939890710383,-1114.0409836065573]
[null,null,"Age :",10,null,null,null,null,null,null,null,null,null,null,null,null,null,null,null,null,{"$f":"INDEX(AA6:AG6,1,U11)","v":30},"pts",15,30,null,135,65,75,85,null,null,null,null,null,135,140,160,161,180,null,210,{"$f":"((205-25)/(210-30))*(AO13-30)+25","v":205},195,185,175,165,155,null,210,230,250,260,280,300,null,355,{"$f":"((350-50)/(355-55))*($BD13-55)+50","v":350},345,340,335,330,325,null,355,365,390,410,null,165,90,null,null,null,165,190,265,315,390,null,50,510,560,null,null,4,831,51,967.5,247.5,null,1.4395604395604396,-1145.2747252747254]
[null,null,null,null,null,null,null,null,null,null,null,null,null,null,null,null,null,null,null,null,null,null,14,34,null,130,60,70,80,{"$f":"((90-10)/(160-80))*(Z14+30-80)+10","v":90},null,null,null,null,130,135,155,156,175,null,200,195,185,175,165,155,145,null,200,220,240,250,270,290,null,350,345,340,335,330,325,320,null,350,360,385,405,null,170,95,null,null,null,170,195,270,320,395,null,60,510,560,null,null,5,848.25,51,984.75,247.5,null,1.4395604395604396,-1170.1071428571429]
[null,null,null,{"$f":"((10-90)/(20-0))*(D13-0)+90","v":50},"pts",null,null,null,null,null,null,null,null,null,null,null,null,null,null,null,"Total",null,13,38,null,125,55,65,75,85,null,null,null,null,125,130,150,151,170,null,190,185,175,165,155,145,135,null,190,210,230,240,260,280,null,345,340,335,330,325,320,315,null,345,355,380,400,null,175,100,null,null,null,175,200,275,325,400,null,70,510,560,null,null,6,865.5,51,1002,247.5,null,1.4395604395604396,-1194.9395604395604]
[null,null,null,null,null,null,null,null,null,null,null,null,null,null,null,null,null,null,null,null,{"$f":"D15+U13","v":80},"pts",12,42,null,120,50,60,70,80,{"$f":"((90-10)/(160-80))*(Z16+40-80)+10","v":90},null,null,null,120,125,145,146,165,null,180,175,165,155,145,135,125,null,180,200,220,230,250,270,null,340,335,330,325,320,315,310,null,340,350,375,395,null,180,105,null,null,null,180,205,280,330,405,null,80,510,560,null,null,7,882,51,1019.25,247.5,null,1.4316939890710383,-1211.7540983606557]
["!!! Ne déplacez les graphiques",null,null,null,null,null,null,null,null,null,null,null,null,null,null,null,null,null,null,null,null,null,11,46,null,115,45,55,65,75,85,null,null,null,115,120,140,141,160,null,170,165,155,145,135,125,115,null,170,190,210,220,240,260,null,335,330,325,320,315,310,305,null,335,345,370,390,null,185,110,null,null,null,185,210,285,335,410,null,90,510,560,null,"Complexité",1,1020,297.75,780,447.75,null,-0.625,935.25]
["sous aucun prétexte!!!",null,null,null,null,null,null,null,null,null,null,null,null,null,null,null,null,null,null,null,null,null,10,50,null,110,40,50,60,70,80,{"$f":"((90-10)/(160-80))*(Z18+50-80)+10","v":90},null,null,110,115,135,136,155,null,160,155,145,135,125,115,105,null,160,180,200,210,230,250,null,330,325,320,315,310,305,300,null,330,340,365,385,null,190,115,null,null,null,190,215,290,340,415,null,100,510,560,null,null,2,1020,318.75,780,468.75,null,-0.625,956.25]
[null,null,null,null,null,null,null,null,null,null,null,null,null,null,null,null,null,null,null,null,null,null,9,54,null,105,35,45,55,65,75,85,null,null,105,110,130,131,150,null,150,145,135,125,115,105,95,null,150,170,190,200,220,240,null,325,320,315,310,305,300,295,null,325,335,360,380,null,195,120,null,null,null,195,220,295,345,420,null,null,null,null,null,null,3,1020,318.75,780,468.75,null,-0.625,956.25]
[null,null,null,null,null,null,null,null,null,null,null,null,null,null,null,null,null,null,null,null,null,null,8,58,null,100,30,40,50,60,70,80,{"$f":"((90-10)/(160-80))*(Z20+60-80)+10","v":90},null,100,105,125,126,145,null,140,135,125,115,105,95,85,null,140,160,180,190,210,230,null,320,315,310,305,300,295,290,null,320,330,355,375,null,200,125,null,null,null,200,225,300,350,425,null,null,null,null,null,null,4,1020,340.5,780,490.5,null,-0.625,978]
[null,null,null,null,null,null,null,null,null,null,null,null,null,null,null,null,null,null,null,null,null,null,7,62,null,95,25,35,45,55,65,75,{"$f":"((90-10)/(160-80))*(Z21+60-80)+10","v":85},null,95,100,120,121,140,null,130,125,115,105,95,85,75,null,130,150,170,180,200,220,null,315,310,305,300,295,290,285,null,315,325,350,370,null,205,130,null,null,null,205,230,305,355,430,null,null,null,null,null,"Coût",1,540,297.75,352.5,492,null,-1.036,{"$f":"CI21-CM21*CH21","v":857.19}]
[null,null,null,null,null,"COUT",null,null,null,null,null,null,null,null,null,null,null,null,null,null,null,null,6,66,null,90,20,30,40,50,60,70,{"$f":"((90-10)/(160-80))*(Z22+60-80)+10","v":80},null,90,95,115,116,135,null,120,115,105,95,85,75,65,null,120,140,160,170,190,210,null,310,305,300,295,290,285,280,null,310,320,345,365,null,210,135,null,null,null,210,235,310,360,435,null,null,null,null,null,null,2,529.5,297.75,342,492,null,-1.036,846.31200000000001]
[null,null,null,null,null,null,null,null,null,null,null,null,null,null,null,null,null,null,null,null,null,null,5,70,null,85,{"$f":"((90-10)/(160-80))*(Z23-80)+10","v":15},{"$f":"((90-10)/(160-80))*(Z23+10-80)+10","v":25},{"$f":"((90-10)/(160-80))*(Z23+20-80)+10","v":35},{"$f":"((90-10)/(160-80))*(Z23+30-80)+10","v":45},{"$f":"((90-10)/(160-80))*(Z23+40-80)+10","v":55},65,{"$f":"((90-10)/(160-80))*(Z23+60-80)+10","v":75},null,85,90,110,111,130,null,110,105,95,85,75,65,55,null,110,130,150,160,180,200,null,305,300,295,290,285,280,275,null,305,315,340,360,null,215,140,null,null,null,215,240,315,365,440,null,null,null,null,null,null,3,519,297.75,331.5,492,null,-1.036,835.43399999999997]
[null,null,null,null,null,null,null,null,null,null,null,null,null,null,null,null,null,null,null,null,null,null,4,74,null,80,{"$f":"((90-10)/(160-80))*(Z24-80)+10","v":10},{"$f":"((90-10)/(160-80))*(Z24+10-80)+10","v":20},30,{"$f":"((90-10)/(160-80))*(Z24+30-80)+10","v":40},{"$f":"((90-10)/(160-80))*(Z24+40-80)+10","v":50},60,{"$f":"((90-10)/(160-80))*(Z24+60-80)+10","v":70},null,80,85,105,106,125,null,100,95,85,75,65,55,45,null,100,120,140,150,170,190,null,300,295,290,285,280,275,270,null,300,310,335,355,null,220,145,null,null,null,220,245,320,370,445,null,null,null,null,null,null,4,508.5,297.75,321,492,null,-1.036,824.55600000000004]
[null,null,null,null,null,null,null,null,null,null,null,null,null,null,null,null,null,null,null,null,null,null,3,78,null,75,null,{"$f":"((90-10)/(160-80))*(Z25+10-80)+10","v":15},25,{"$f":"((90-10)/(160-80))*(Z25+30-80)+10","v":35},{"$f":"((90-10)/(160-80))*(Z25+40-80)+10","v":45},{"$f":"((90-10)/(160-80))*(Z25+50-80)+10","v":55},{"$f":"((90-10)/(160-80))*(Z25+60-80)+10","v":65},null,75,80,100,101,120,null,90,85,75,65,55,45,35,null,90,110,130,140,160,180,null,295,290,285,280,275,270,265,null,295,305,330,350,null,225,150,null,null,null,225,250,325,375,450,null,null,null,null,null,null,5,498,297.75,310.5,492,null,-1.036,813.678]
[null,null,null,null,null,null,null,null,null,null,null,null,null,null,null,null,null,null,null,null,null,null,2,82,null,70,null,{"$f":"((90-10)/(160-80))*(Z26+10-80)+10","v":10},20,30,40,50,60,null,70,75,95,96,115,null,80,75,65,55,45,35,25,null,80,100,120,130,150,170,null,290,285,280,275,270,265,260,null,290,300,325,345,null,230,155,null,null,null,230,255,330,380,455,null,null,null,null,null,null,6,488.25,297.75,300,492,null,-1.0318725099601593,801.56175298804783]
[null,null,null,null,null,null,null,null,null,null,null,null,null,null,null,null,null,null,null,null,null,null,1,86,null,65,null,null,15,25,35,45,55,null,65,70,90,91,110,null,70,65,55,45,35,25,null,null,70,90,110,120,140,160,null,285,280,275,270,265,260,255,null,285,295,320,340,null,235,160,null,null,null,235,260,335,385,460,null,null,null,null,null,"Origine",1,540,567.75,300,717,null,{"$f":"(CI27-CK27)/(CH27-CJ27)","v":-0.62187499999999996},{"$f":"CI27-CM27*CH27","v":903.5625}]
[null,null,null,null,null,null,null,null,null,null,null,null,null,null,null,null,null,null,null,null,null,null,0,90,null,60,null,null,10,20,30,40,50,null,60,65,85,86,105,null,60,55,45,35,25,null,null,null,60,80,100,110,130,150,null,280,275,270,265,260,255,250,null,280,290,315,335,null,240,165,{"$f":"((435-65)/(610-240))*($BQ28-240)+65","v":65},null,null,240,265,340,390,465,null,null,null,null,null,null,2,540,580.5,300,729.75,null,{"$f":"(CI28-CK28)/(CH28-CJ28)","v":-0.62187499999999996},{"$f":"CI28-CM28*CH28","v":916.3125}]
[null,null,null,null,null,null,null,null,null,null,null,null,null,null,null,null,null,null,null,null,null,null,null,null,null,55,null,null,null,15,25,35,45,null,55,60,80,81,100,null,50,45,35,25,null,null,null,null,50,70,90,100,120,140,null,275,270,265,260,255,250,245,null,275,285,310,330,null,245,170,70,null,null,245,270,345,395,470,null,null,null,null,null,null,3,540,587.25,300,736.5,null,{"$f":"(CI29-CK29)/(CH29-CJ29)","v":-0.62187499999999996},{"$f":"CI29-CM29*CH29","v":923.0625}]
[null,null,null,null,null,null,null,null,null,null,null,null,null,null,null,null,null,null,null,null,2,null,null,null,null,50,null,null,null,10,20,30,40,null,50,55,75,76,95,null,40,35,25,null,null,null,null,null,40,60,80,90,110,130,null,270,265,260,255,250,245,240,null,270,280,305,325,null,250,175,75,null,null,250,275,350,400,475,null,null,null,null,null,null,4,540,600,300,746.25,null,{"$f":"(CI30-CK30)/(CH30-CJ30)","v":-0.609375},{"$f":"CI30-CM30*CH30","v":929.0625}]
[null,null,null,null,null,null,null,null,null,null,null,null,null,null,null,null,null,null,null,null,null,null,null,null,null,45,null,null,null,null,15,25,35,null,45,50,70,71,90,null,30,25,null,null,null,null,null,null,30,50,70,80,100,120,null,265,260,255,250,245,240,235,null,265,275,300,320,null,255,180,80,null,null,255,280,355,405,480,null,null,null,null,null,null,5,540,613.5,300,758.25,null,{"$f":"(CI31-CK31)/(CH31-CJ31)","v":-0.60312500000000002},{"$f":"CI31-CM31*CH31","v":939.1875}]
[null,2,null,null,null,null,null,null,null,null,null,null,null,null,null,null,null,null,null,null,{"$f":"INDEX(AJ6:AM6,1,U30)","v":25},"pts",null,null,null,40,null,null,null,null,10,20,30,null,40,45,65,66,85,null,null,null,null,null,null,null,null,null,null,null,null,null,null,null,null,260,255,250,245,240,235,230,null,260,270,295,315,null,260,185,85,null,null,260,285,360,410,485,null,null,null,null,null,"Robustesse",1,780,568.5,1001.25,760.5,null,{"$f":"(CI32-CK32)/(CH32-CJ32)","v":0.8677966101694915},{"$f":"CI32-CM32*CH32","v":-108.38135593220341}]
[null,null,null,null,null,null,null,null,null,null,null,null,null,null,null,null,null,null,null,null,null,null,null,null,null,35,null,null,null,null,null,15,25,null,35,40,60,61,80,null,null,null,null,null,null,null,null,null,null,null,null,null,null,null,null,255,250,245,240,235,230,225,null,255,265,290,310,null,265,190,90,null,null,265,290,365,415,490,null,null,null,null,null,null,2,783.75,568.5,1004.25,760.5,null,0.87074829931972786,-113.94897959183675]
[{"$f":"INDEX(AP6:AU6,1,B32)","v":15},"pts",null,null,null,null,null,null,null,null,null,null,null,null,null,null,null,null,null,null,"Total",null,null,null,null,30,null,null,null,null,null,10,20,null,30,35,55,56,75,null,null,null,null,null,null,null,null,null,null,null,null,null,null,null,null,250,245,240,235,230,225,220,null,250,260,285,305,null,270,195,95,null,null,270,295,370,420,495,null,null,null,null,null,null,3,786.75,568.5,1008.75,760.5,null,0.86486486486486491,-111.93243243243251]
[null,null,null,null,null,null,null,null,null,null,null,null,null,null,null,null,null,null,null,null,{"$f":"U16+U32","v":105},"pts",null,null,null,25,null,null,null,null,null,null,15,null,25,30,50,51,70,null,null,null,null,null,null,null,null,null,null,null,null,null,null,null,null,245,240,235,230,225,220,215,null,245,255,280,300,null,275,200,100,null,null,275,300,375,425,500,null,null,null,null,null,null,4,790.5,568.5,1012.5,760.5,null,0.86486486486486491,-115.17567567567573]
["Total",null,null,null,null,null,null,null,null,null,null,null,null,null,null,null,null,null,null,null,null,null,null,null,null,20,null,null,null,null,null,null,10,null,20,25,45,46,65,null,null,null,null,null,null,null,null,null,null,null,null,null,null,null,null,240,235,230,225,220,215,210,null,240,250,275,295,null,280,205,105,null,null,280,305,380,430,505,null,null,null,null,null,null,5,795,568.5,1015.5,760.5,null,0.87074829931972786,-123.74489795918362]
[{"$f":"U35+A34","v":120},"pts",null,null,null,null,null,null,null,null,null,null,null,null,null,null,null,null,null,null,null,null,null,null,null,null,null,null,null,null,null,null,null,null,null,null,null,null,null,null,null,null,null,null,null,null,null,null,null,null,null,null,null,null,null,235,230,225,220,215,210,205,null,235,245,270,290,null,285,210,110,null,null,285,310,385,435,510,null,null,null,null,null,null,6,798,568.5,1019.25,760.5,null,0.8677966101694915,-124.00169491525423]
[null,null,null,null,null,null,null,null,null,null,null,null,null,null,null,null,null,null,null,null,null,null,null,null,null,null,null,null,null,null,null,null,null,null,null,null,null,null,null,null,null,null,null,null,null,null,null,null,null,null,null,null,null,null,null,230,225,220,215,210,205,200,null,230,240,265,285,null,290,215,115,null,null,290,315,390,440,515,null,null,null,null,null,"Perte produits",1,1019.25,861,779.25,1028.5,null,-0.69791666666666663,1572.3515625]
[null,null,null,null,null,null,null,null,null,null,null,null,null,null,null,null,null,null,null,null,null,null,null,null,null,null,null,null,null,null,null,null,null,null,null,null,null,null,null,null,null,null,null,null,null,null,null,null,null,null,null,null,null,null,null,225,220,215,210,205,200,195,null,225,235,260,280,null,295,220,120,null,null,295,320,395,445,520,null,null,null,null,null,null,2,1019.25,847.5,779.25,1015.5,null,{"$f":"(CI39-CK39)/(CH39-CJ39)","v":-0.7},{"$f":"CI39-CM39*CH39","v":1560.9749999999999}]
[null,null,null,null,null,null,null,null,null,null,null,null,null,"COMPLEXITE",null,null,null,null,null,null,null,null,null,null,null,null,null,null,null,null,null,null,null,null,null,null,null,null,null,null,null,null,null,null,null,null,null,null,null,null,null,null,null,null,null,220,215,210,205,200,195,190,null,220,230,255,275,null,300,225,125,null,null,300,325,400,450,525,null,null,null,null,null,null,3,1019.25,837.75,779.25,1005,null,-0.69687500000000002,1548.03984375]
[null,null,null,null,null,null,null,null,null,null,null,null,null,null,null,null,null,null,null,null,null,null,null,null,null,null,null,null,null,null,null,null,null,null,null,null,null,null,null,null,null,null,null,null,null,null,null,null,null,null,null,null,null,null,null,215,210,205,200,195,190,185,null,215,225,250,270,null,305,230,130,null,null,305,330,405,455,530,null,null,null,null,null,"Conditions de travail",1,463.5,837.75,300,1029,null,-1.1697247706422018,1379.9174311926604]
[null,null,null,null,null,null,null,null,null,null,null,null,null,null,null,null,null,null,null,null,null,null,null,null,null,null,null,null,null,null,null,null,null,null,null,null,null,null,null,null,null,null,null,null,null,null,null,null,null,null,null,null,null,null,null,210,205,200,195,190,185,180,null,210,220,245,265,null,310,235,135,null,null,310,335,410,460,535,null,null,null,null,null,null,2,507.75,837.75,344.25,1029,null,-1.1697247706422018,1431.6777522935781]
[null,null,null,null,null,null,null,null,null,null,null,null,null,"ROBUSTESSE",null,null,null,null,null,null,null,null,null,null,null,null,null,null,null,null,null,null,null,null,null,null,null,null,null,null,null,null,null,null,null,null,null,null,null,null,null,null,null,null,null,205,200,195,190,185,180,175,null,205,215,240,260,null,315,240,140,{"$f":"((435-65)/(685-315))*($BQ43-315)+65","v":65},null,315,340,415,465,540,null,null,null,null,null,null,3,540.75,837.75,377.25,1029,null,-1.1697247706422018,1470.2786697247707]
[null,null,null,null,null,null,null,null,null,null,null,null,null,null,null,null,null,null,null,null,null,null,null,null,null,null,null,null,null,null,null,null,null,null,null,null,null,null,null,null,null,null,null,null,null,null,null,null,null,null,null,null,null,null,null,200,195,190,185,180,175,170,null,200,210,235,255,null,320,245,145,70,null,320,345,420,470,545,null,null,null,null,null,"Délai",1,302.25,1104.75,539.25,1245,null,0.59177215189873422,925.88686708860757]
[null,null,null,null,null,null,null,null,null,null,null,null,null,null,null,null,null,null,null,null,null,null,null,null,null,null,null,null,null,null,null,null,null,null,null,null,null,null,null,null,null,null,null,null,null,null,null,null,null,null,null,null,null,null,null,195,190,185,180,175,170,165,null,195,205,230,250,null,325,250,150,75,null,325,350,425,475,550,null,null,null,null,null,null,2,302.25,1124.25,539.25,1263.75,null,0.58860759493670889,946.3433544303798]
[null,null,null,null,null,null,null,null,null,null,null,null,null,null,null,null,null,null,null,null,null,null,null,null,null,null,null,null,null,null,null,null,null,null,null,null,null,null,null,null,null,null,null,null,null,null,null,null,null,null,null,null,null,null,null,190,185,180,175,170,165,160,null,190,200,225,245,null,330,255,155,80,null,330,355,430,480,555,null,null,null,null,null,null,3,302.25,1136.25,539.25,1276.5,null,0.59177215189873422,957.38686708860757]
[null,null,null,null,null,null,null,null,null,null,null,null,null,null,null,null,null,null,null,null,null,null,null,null,null,null,null,null,null,null,null,null,null,null,null,null,null,null,null,null,null,null,null,null,null,null,null,null,null,null,null,null,null,null,null,185,180,175,170,165,160,155,null,185,195,220,240,null,335,260,160,85,null,335,360,435,485,560,null,null,null,null,null,null,4,302.25,1156.5,539.25,1296,null,0.58860759493670889,978.5933544303798]
[null,null,null,null,null,null,null,null,null,null,null,null,null,null,null,null,null,null,null,null,null,null,null,null,null,null,null,null,null,null,null,null,null,null,null,null,null,null,null,null,null,null,null,null,null,null,null,null,null,null,null,null,null,null,null,180,175,170,165,160,155,150,null,180,190,215,235,null,340,265,165,90,null,340,365,440,490,565,null,null,null,null,null,"Résultat",null,null,null,825]
[null,null,null,null,null,null,null,null,null,null,null,null,null,null,null,null,null,null,null,null,null,null,null,null,null,null,null,null,null,null,null,null,null,null,null,null,null,null,null,null,null,null,null,null,null,null,null,null,null,null,null,null,null,null,null,175,170,165,160,155,150,145,null,175,185,210,230,null,345,270,170,95,null,345,370,445,495,570]
[null,null,null,null,null,null,null,null,null,null,null,null,null,null,null,null,null,null,null,null,null,null,null,null,null,null,null,null,null,null,null,null,null,null,null,null,null,null,null,null,null,null,null,null,null,null,null,null,null,null,null,null,null,null,null,170,165,160,155,150,145,140,null,170,180,205,225,null,350,275,175,100,null,350,375,450,500,575]
[null,null,null,null,null,null,null,null,null,null,null,null,null,null,null,null,null,null,null,null,null,null,null,null,null,null,null,null,null,null,null,null,null,null,null,null,null,null,null,null,null,null,null,null,null,null,null,null,null,null,null,null,null,null,null,165,160,155,150,145,140,135,null,165,175,200,220,null,355,280,180,105,null,355,380,455,505,580]
[null,5,null,null,null,null,null,null,null,null,null,null,null,null,null,null,null,null,null,null,2,null,null,null,null,null,null,null,null,null,null,null,null,null,null,null,null,null,null,null,null,null,null,null,null,null,null,null,null,null,null,null,null,null,null,160,155,150,145,140,135,130,null,160,170,195,215,null,360,285,185,110,null,360,385,460,510,585]
[null,null,null,null,null,null,null,null,null,null,null,null,null,null,null,null,null,null,null,null,null,null,null,null,null,null,null,null,null,null,null,null,null,null,null,null,null,null,null,null,null,null,null,null,null,null,null,null,null,null,null,null,null,null,null,155,150,145,140,135,130,125,null,155,165,190,210,null,365,290,190,115,null,365,390,465,515,590]
[{"$f":"INDEX(AX6:BB6,1,B52)","v":90},"pts",null,null,null,null,null,null,null,null,null,null,null,null,null,null,null,null,null,null,{"$f":"INDEX(BE6:BJ6,1,U52)","v":10},"pts",null,null,null,null,null,null,null,null,null,null,null,null,null,null,null,null,null,null,null,null,null,null,null,null,null,null,null,null,null,null,null,null,null,150,145,140,135,130,125,120,null,150,160,185,205,null,370,295,195,120,null,370,395,470,520,595]
[null,null,null,null,null,null,null,null,null,null,null,null,null,null,null,null,null,null,null,null,null,null,null,null,null,null,null,null,null,null,null,null,null,null,null,null,null,null,null,null,null,null,null,null,null,null,null,null,null,null,null,null,null,null,null,145,140,135,130,125,120,115,null,145,155,180,200,null,375,300,200,125,null,375,400,475,525,600]
["Total",null,null,null,null,null,null,null,null,null,null,null,null,null,null,null,null,null,null,null,"Total",null,null,null,null,null,null,null,null,null,null,null,null,null,null,null,null,null,null,null,null,null,null,null,null,null,null,null,null,null,null,null,null,null,null,140,135,130,125,120,115,110,null,140,150,175,195,null,380,305,205,130,null,380,405,480,530,605]
[{"$f":"A37+A54","v":210},"pts",null,null,null,null,null,null,null,null,null,null,null,null,null,null,null,null,null,null,{"$f":"A57+U54","v":220},"pts",null,null,null,null,null,null,null,null,null,null,null,null,null,null,null,null,null,null,null,null,null,null,null,null,null,null,null,null,null,null,null,null,null,135,130,125,120,115,110,105,null,135,145,170,190,null,385,310,210,135,null,385,410,485,535,610]
[null,null,null,null,null,null,null,null,null,null,null,null,null,null,null,null,null,null,null,null,null,null,null,null,null,null,null,null,null,null,null,null,null,null,null,null,null,null,null,null,null,null,null,null,null,null,null,null,null,null,null,null,null,null,null,130,125,120,115,110,105,100,null,130,140,165,185,null,390,315,215,140,null,390,415,490,540,615]
[null,null,null,null,null,null,null,null,null,null,null,null,null,null,null,null,null,null,null,null,null,null,null,null,null,null,null,null,null,null,null,null,null,null,null,null,null,null,null,null,null,null,null,null,null,null,null,null,null,null,null,null,null,null,null,125,120,115,110,105,100,95,null,125,135,160,180,null,395,320,220,145,null,395,420,495,545,620]
[null,null,null,null,null,null,null,null,null,null,null,null,null,null,null,null,null,null,null,null,null,null,null,null,null,null,null,null,null,null,null,null,null,null,null,null,null,null,null,null,null,null,null,null,null,null,null,null,null,null,null,null,null,null,null,120,115,110,105,100,95,90,null,120,130,155,175,null,400,325,225,150,null,400,425,500,550,625]
[null,null,null,null,null,"ORIGINE",null,null,null,null,null,null,null,null,null,null,null,null,null,null,null,null,null,null,null,null,null,null,null,null,null,null,null,null,null,null,null,null,null,null,null,null,null,null,null,null,null,null,null,null,null,null,null,null,null,115,110,105,100,95,90,85,null,115,125,150,170,null,405,330,230,155,null,405,430,505,555,630]
[null,null,null,null,null,null,null,null,null,null,null,null,null,null,null,null,null,null,null,null,null,null,null,null,null,null,null,null,null,null,null,null,null,null,null,null,null,null,null,null,null,null,null,null,null,null,null,null,null,null,null,null,null,null,null,110,105,100,95,90,85,80,null,110,120,145,165,null,410,335,235,160,null,410,435,510,560,635]
[null,null,null,null,null,null,null,null,null,null,null,null,null,null,null,null,null,null,null,null,null,null,null,null,null,null,null,null,null,null,null,null,null,null,null,null,null,null,null,null,null,null,null,null,null,null,null,null,null,null,null,null,null,null,null,105,100,95,90,85,80,75,null,105,115,140,160,null,415,340,240,165,null,415,440,515,565,640]
[null,null,null,null,null,"CONDITIONS DE TRAVAIL",null,null,null,null,null,null,null,null,null,null,null,null,null,null,null,null,null,null,null,null,null,null,null,null,null,null,null,null,null,null,null,null,null,null,null,null,null,null,null,null,null,null,null,null,null,null,null,null,null,100,95,90,85,80,75,70,null,100,110,135,155,null,420,345,245,170,null,420,445,520,570,645]
[null,null,null,null,null,null,null,null,null,null,null,null,null,null,null,null,null,null,null,null,null,null,null,null,null,null,null,null,null,null,null,null,null,null,null,null,null,null,null,null,null,null,null,null,null,null,null,null,null,null,null,null,null,null,null,95,90,85,80,75,70,65,null,95,105,130,150,null,425,350,250,175,null,425,450,525,575,650]
[null,null,null,null,null,null,null,null,null,null,null,null,null,null,null,null,null,null,null,null,null,null,null,null,null,null,null,null,null,null,null,null,null,null,null,null,null,null,null,null,null,null,null,null,null,null,null,null,null,null,null,null,null,null,null,90,85,80,75,70,65,60,null,90,100,125,145,null,430,355,255,180,null,430,455,530,580,655]
[null,null,null,null,null,null,null,null,null,null,null,null,null,null,null,null,null,null,null,null,null,null,null,null,null,null,null,null,null,null,null,null,null,null,null,null,null,null,null,null,null,null,null,null,null,null,null,null,null,null,null,null,null,null,null,85,80,75,70,65,60,55,null,85,95,120,140,null,435,360,260,185,null,435,460,535,585,660]
[null,null,null,null,null,null,null,null,null,null,null,null,null,null,null,null,null,null,null,null,null,null,null,null,null,null,null,null,null,null,null,null,null,null,null,null,null,null,null,null,null,null,null,null,null,null,null,null,null,null,null,null,null,null,null,80,75,70,65,60,55,50,null,80,90,115,135,null,440,365,265,190,null,440,465,540,590,665]
[null,null,null,null,null,null,null,null,null,null,null,null,null,null,null,null,null,null,null,null,null,null,null,null,null,null,null,null,null,null,null,null,null,null,null,null,null,null,null,null,null,null,null,null,null,null,null,null,null,null,null,null,null,null,null,75,70,65,60,55,50,null,null,75,85,110,130,null,445,370,270,195,null,445,470,545,595,670]
[null,null,null,null,null,null,null,null,null,null,null,null,null,null,null,null,null,null,null,null,null,null,null,null,null,null,null,null,null,null,null,null,null,null,null,null,null,null,null,null,null,null,null,null,null,null,null,null,null,null,null,null,null,null,null,70,65,60,55,50,null,null,null,70,80,105,125,null,450,375,275,200,null,450,475,550,600,675]
[null,null,null,null,null,null,null,null,null,null,null,null,null,null,null,null,null,null,null,null,null,null,null,null,null,null,null,null,null,null,null,null,null,null,null,null,null,null,null,null,null,null,null,null,null,null,null,null,null,null,null,null,null,null,null,65,60,55,50,null,null,null,null,65,75,100,120,null,455,380,280,205,null,455,480,555,605,680]
[null,2,null,null,null,null,null,null,null,null,null,null,null,null,null,null,null,null,null,null,null,null,null,null,null,null,null,null,null,null,null,null,null,null,null,null,null,null,null,null,null,null,null,null,null,null,null,null,null,null,null,null,null,null,null,60,55,50,null,null,null,null,null,60,70,95,115,null,460,385,285,210,null,460,485,560,610,685]
[null,null,null,null,null,null,null,null,null,null,null,null,null,null,null,null,null,null,null,null,3,null,null,null,null,null,null,null,null,null,null,null,null,null,null,null,null,null,null,null,null,null,null,null,null,null,null,null,null,null,null,null,null,null,null,55,{"$f":"((350-50)/(355-55))*($BD73-55)+50","v":50},null,null,null,null,null,null,55,{"$f":"((390-65)/(380-55))*($BL73-55)+65","v":65},{"$f":"((415-90)/(380-55))*($BL73-55)+90","v":90},{"$f":"((435-110)/(380-55))*($BL73-55)+110","v":110},null,465,{"$f":"((435-65)/(510-140))*($BQ73-140)+65","v":390},{"$f":"((435-65)/(610-240))*($BQ73-240)+65","v":290},{"$f":"((435-65)/(685-315))*($BQ73-315)+65","v":215},null,465,{"$f":"((710-165)/(685-140))*($BV73-140)+165","v":490},{"$f":"((785-240)/(685-140))*($BV73-140)+240","v":565},{"$f":"((710-165)/(835-290))*($BV73-140)+290","v":615},{"$f":"((710-165)/(910-365))*($BV73-140)+365","v":690}]
[{"$f":"INDEX(BR6:BT6,1,B72)","v":175},"pts",null,null,null,null,null,null,null,null,null,null,null,null,null,null,null,null,null,null,null,null,null,null,null,null,null,null,null,null,null,null,null,null,null,null,null,null,null,null,null,null,null,null,null,null,null,null,null,null,null,null,null,null,null,null,null,null,null,null,null,null,null,null,null,null,null,null,470,395,295,220,null,470,495,570,620,695]
[null,null,null,null,null,null,null,null,null,null,null,null,null,null,null,null,null,null,null,null,null,null,null,null,null,null,null,null,null,null,null,null,null,null,null,null,null,null,null,null,null,null,null,null,null,null,null,null,null,null,null,null,null,null,null,null,null,null,null,null,null,null,null,null,null,null,null,null,475,400,300,225,null,475,500,575,625,700]
["Total",null,null,null,null,null,null,null,null,null,null,null,null,null,null,null,null,null,null,null,{"$f":"INDEX(BM6:BO6,1,U73)","v":55},"pts",null,null,null,null,null,null,null,null,null,null,null,null,null,null,null,null,null,null,null,null,null,null,null,null,null,null,null,null,null,null,null,null,null,null,null,null,null,null,null,null,null,null,null,null,null,null,480,405,305,230,null,480,505,580,630,705]
[{"$f":"U79+A74","v":450},"pts",null,null,null,null,null,null,null,null,null,null,null,null,null,null,null,null,null,null,null,null,null,null,null,null,null,null,null,null,null,null,null,null,null,null,null,null,null,null,null,null,null,null,null,null,null,null,null,null,null,null,null,null,null,null,null,null,null,null,null,null,null,null,null,null,null,null,485,410,310,235,null,485,510,585,635,710]
[null,null,null,null,null,null,null,null,null,null,null,null,null,null,null,null,null,null,null,null,"Total",null,null,null,null,null,null,null,null,null,null,null,null,null,null,null,null,null,null,null,null,null,null,null,null,null,null,null,null,null,null,null,null,null,null,null,null,null,null,null,null,null,null,null,null,null,null,null,490,415,315,240,null,490,515,590,640,715]
[null,null,null,null,null,null,null,null,null,null,null,null,null,null,null,null,null,null,null,null,{"$f":"U57+U76","v":275},"pts",null,null,null,null,null,null,null,null,null,null,null,null,null,null,null,null,null,null,null,null,null,null,null,null,null,null,null,null,null,null,null,null,null,null,null,null,null,null,null,null,null,null,null,null,null,null,495,420,320,245,null,495,520,595,645,720]
[null,null,null,null,null,null,null,null,null,null,null,null,null,null,null,null,null,null,null,null,null,null,null,null,null,null,null,null,null,null,null,null,null,null,null,null,null,null,null,null,null,null,null,null,null,null,null,null,null,null,null,null,null,null,null,null,null,null,null,null,null,null,null,null,null,null,null,null,500,425,325,250,null,500,525,600,650,725]
[null,null,null,null,null,null,null,null,null,null,null,null,null,null,null,null,null,null,null,null,null,null,null,null,null,null,null,null,null,null,null,null,null,null,null,null,null,null,null,null,null,null,null,null,null,null,null,null,null,null,null,null,null,null,null,null,null,null,null,null,null,null,null,null,null,null,null,null,505,430,330,255,null,505,530,605,655,730]
[null,null,null,null,null,null,null,null,null,null,null,null,null,"PERTE DE PRODUITS",null,null,null,null,null,null,null,null,null,null,null,null,null,null,null,null,null,null,null,null,null,null,null,null,null,null,null,null,null,null,null,null,null,null,null,null,null,null,null,null,null,null,null,null,null,null,null,null,null,null,null,null,null,null,510,435,335,260,null,510,535,610,660,735]
[null,null,null,null,null,null,null,null,null,null,null,null,null,null,null,null,null,null,null,null,null,null,null,null,null,null,null,null,null,null,null,null,null,null,null,null,null,null,null,null,null,null,null,null,null,null,null,null,null,null,null,null,null,null,null,null,null,null,null,null,null,null,null,null,null,null,null,null,515,null,340,265,null,515,540,615,665,740]
[null,null,null,null,null,null,null,null,null,null,null,null,null,null,null,null,null,null,null,null,null,null,null,null,null,null,null,null,null,null,null,null,null,null,null,null,null,null,null,null,null,null,null,null,null,null,null,null,null,null,null,null,null,null,null,null,null,null,null,null,null,null,null,null,null,null,null,null,520,null,345,270,null,520,545,620,670,745]
[null,null,null,null,null,null,null,null,null,null,null,null,null,null,null,null,null,null,null,null,null,null,null,null,null,null,null,null,null,null,null,null,null,null,null,null,null,null,null,null,null,null,null,null,null,null,null,null,null,null,null,null,null,null,null,null,null,null,null,null,null,null,null,null,null,null,null,null,525,null,350,275,null,525,550,625,675,750]
[null,null,null,null,null,null,null,null,null,null,null,null,null,null,null,null,null,null,null,null,null,null,null,null,null,null,null,null,null,null,null,null,null,null,null,null,null,null,null,null,null,null,null,null,null,null,null,null,null,null,null,null,null,null,null,null,null,null,null,null,null,null,null,null,null,null,null,null,530,null,355,280,null,530,555,630,680,755]
[null,null,null,null,null,null,null,null,null,null,null,null,null,null,null,null,null,null,null,null,null,null,null,null,null,null,null,null,null,null,null,null,null,null,null,null,null,null,null,null,null,null,null,null,null,null,null,null,null,null,null,null,null,null,null,null,null,null,null,null,null,null,null,null,null,null,null,null,535,null,360,285,null,535,560,635,685,760]
[null,null,null,null,null,null,null,null,null,null,null,null,null,null,null,null,null,null,null,null,null,null,null,null,null,null,null,null,null,null,null,null,null,null,null,null,null,null,null,null,null,null,null,null,null,null,null,null,null,null,null,null,null,null,null,null,null,null,null,null,null,null,null,null,null,null,null,null,540,null,365,290,null,540,565,640,690,765]
[null,null,null,null,null,null,null,null,null,null,null,null,null,null,null,null,null,null,null,null,null,null,null,null,null,null,null,null,null,null,null,null,null,null,null,null,null,null,null,null,null,null,null,null,null,null,null,null,null,null,null,null,null,null,null,null,null,null,null,null,null,null,null,null,null,null,null,null,545,null,370,295,null,545,570,645,695,770]
[null,null,null,null,null,null,null,null,null,null,null,null,null,null,null,null,null,null,null,null,null,null,null,null,null,null,null,null,null,null,null,null,null,null,null,null,null,null,null,null,null,null,null,null,null,null,null,null,null,null,null,null,null,null,null,null,null,null,null,null,null,null,null,null,null,null,null,null,550,null,375,300,null,550,575,650,700,775]
[null,null,null,null,null,null,null,null,null,null,null,null,null,null,null,null,null,null,null,null,null,null,null,null,null,null,null,null,null,null,null,null,null,null,null,null,null,null,null,null,null,null,null,null,null,null,null,null,null,null,null,null,null,null,null,null,null,null,null,null,null,null,null,null,null,null,null,null,555,null,380,305,null,555,580,655,705,780]
[null,null,null,null,null,null,null,null,null,null,null,null,null,null,null,null,null,null,null,null,null,null,null,null,null,null,null,null,null,null,null,null,null,null,null,null,null,null,null,null,null,null,null,null,null,null,null,null,null,null,null,null,null,null,null,null,null,null,null,null,null,null,null,null,null,null,null,null,560,null,385,310,null,560,585,660,710,785]
[null,null,null,null,null,null,null,null,null,null,null,null,null,null,null,null,null,null,null,null,null,null,null,null,null,null,null,null,null,null,null,null,null,null,null,null,null,null,null,null,null,null,null,null,null,null,null,null,null,null,null,null,null,null,null,null,null,null,null,null,null,null,null,null,null,null,null,null,565,null,390,315,null,565,590,665,715,790]
[null,1,null,null,null,null,null,null,null,null,null,null,null,null,null,null,null,null,"SCORE",null,null,null,null,null,null,null,null,null,null,null,null,null,null,null,null,null,null,null,null,null,null,null,null,null,null,null,null,null,null,null,null,null,null,null,null,null,null,null,null,null,null,null,null,null,null,null,null,null,570,null,395,320,null,570,595,670,720,795]
[null,null,null,null,null,null,null,null,null,null,null,null,null,null,null,null,null,null,null,null,null,null,null,null,null,null,null,null,null,null,null,null,null,null,null,null,null,null,null,null,null,null,null,null,null,null,null,null,null,null,null,null,null,null,null,null,null,null,null,null,null,null,null,null,null,null,null,null,575,null,400,325,null,575,600,675,725,800]
[{"$f":"INDEX(BW6:BZ6,1,B94)","v":25},"pts",null,null,null,null,null,null,null,null,null,null,null,null,null,null,null,null,{"$f":"A99","v":475},null,null,null,null,null,null,null,null,null,null,null,null,null,null,null,null,null,null,null,null,null,null,null,null,null,null,null,null,null,null,null,null,null,null,null,null,null,null,null,null,null,null,null,null,null,null,null,null,null,580,null,405,330,null,580,605,680,730,805]
[null,null,null,null,null,null,null,null,null,null,null,null,null,null,null,null,null,null,null,null,null,null,null,null,null,null,null,null,null,null,null,null,null,null,null,null,null,null,null,null,null,null,null,null,null,null,null,null,null,null,null,null,null,null,null,null,null,null,null,null,null,null,null,null,null,null,null,null,585,null,410,335,null,585,610,685,735,810]
["Total",null,null,null,null,null,null,null,null,null,null,null,null,null,null,null,null,null,null,null,null,null,null,null,null,null,null,null,null,null,null,null,null,null,null,null,null,null,null,null,null,null,null,null,null,null,null,null,null,null,null,null,null,null,null,null,null,null,null,null,null,null,null,null,null,null,null,null,590,null,415,340,null,590,615,690,740,815]
[{"$f":"A77+A96","v":475},"pts",null,null,null,null,null,null,null,null,null,null,null,null,null,null,null,null,null,null,null,null,null,null,null,null,null,null,null,null,null,null,null,null,null,null,null,null,null,null,null,null,null,null,null,null,null,null,null,null,null,null,null,null,null,null,null,null,null,null,null,null,null,null,null,null,null,null,595,null,420,345,null,595,620,695,745,820]
[null,null,null,null,null,null,null,null,null,null,null,null,null,null,null,null,null,null,null,null,null,null,null,null,null,null,null,null,null,null,null,null,null,null,null,null,null,null,null,null,null,null,null,null,null,null,null,null,null,null,null,null,null,null,null,null,null,null,null,null,null,null,null,null,null,null,null,null,600,null,425,350,null,600,625,700,750,825]
[null,null,null,null,null,null,null,null,null,null,null,null,null,null,null,null,null,null,null,null,null,null,null,null,null,null,null,null,null,null,null,null,null,null,null,null,null,null,null,null,null,null,null,null,null,null,null,null,null,null,null,null,null,null,null,null,null,null,null,null,null,null,null,null,null,null,null,null,605,null,430,355,null,605,630,705,755,830]
[null,null,null,null,null,null,null,null,null,null,null,null,null,null,null,null,null,null,null,null,null,null,null,null,null,null,null,null,null,null,null,null,null,null,null,null,null,null,null,null,null,null,null,null,null,null,null,null,null,null,null,null,null,null,null,null,null,null,null,null,null,null,null,null,null,null,null,null,610,null,435,360,null,610,635,710,760,835]
[null,null,null,null,null,"DELAI",null,null,null,null,null,null,null,"RESULTAT",null,null,null,null,null,null,null,null,null,null,null,null,null,null,null,null,null,null,null,null,null,null,null,null,null,null,null,null,null,null,null,null,null,null,null,null,null,null,null,null,null,null,null,null,null,null,null,null,null,null,null,null,null,null,615,null,null,365,null,615,640,715,765,840]
[null,null,null,null,null,null,null,null,null,null,null,null,null,null,null,null,null,null,null,null,null,null,null,null,null,null,null,null,null,null,null,null,null,null,null,null,null,null,null,null,null,null,null,null,null,null,null,null,null,null,null,null,null,null,null,null,null,null,null,null,null,null,null,null,null,null,null,null,620,null,null,370,null,620,645,720,770,845]
[null,null,null,null,null,null,null,null,null,null,null,null,null,null,null,null,null,null,null,null,null,null,null,null,null,null,null,null,null,null,null,null,null,null,null,null,null,null,null,null,null,null,null,null,null,null,null,null,null,null,null,null,null,null,null,null,null,null,null,null,null,null,null,null,null,null,null,null,625,null,null,375,null,625,650,725,775,850]
[null,null,null,null,null,null,null,null,null,null,null,null,null,null,null,null,null,null,null,null,null,null,null,null,null,null,null,null,null,null,null,null,null,null,null,null,null,null,null,null,null,null,null,null,null,null,null,null,null,null,null,null,null,null,null,null,null,null,null,null,null,null,null,null,null,null,null,null,630,null,null,380,null,630,655,730,780,855]
[null,null,null,null,null,null,null,null,null,null,null,null,null,null,null,null,null,null,null,null,null,null,null,null,null,null,null,null,null,null,null,null,null,null,null,null,null,null,null,null,null,null,null,null,null,null,null,null,null,null,null,null,null,null,null,null,null,null,null,null,null,null,null,null,null,null,null,null,635,null,null,385,null,635,660,735,785,860]
[null,null,null,null,null,null,null,null,null,null,null,null,null,null,null,null,null,null,null,null,null,null,null,null,null,null,null,null,null,null,null,null,null,null,null,null,null,null,null,null,null,null,null,null,null,null,null,null,null,null,null,null,null,null,null,null,null,null,null,null,null,null,null,null,null,null,null,null,640,null,null,390,null,640,665,740,790,865]
[null,null,null,null,null,null,null,null,null,null,null,null,null,null,null,null,null,null,null,null,null,null,null,null,null,null,null,null,null,null,null,null,null,null,null,null,null,null,null,null,null,null,null,null,null,null,null,null,null,null,null,null,null,null,null,null,null,null,null,null,null,null,null,null,null,null,null,null,645,null,null,395,null,645,670,745,795,870]
[null,null,null,null,null,null,null,null,null,null,null,null,null,null,null,null,null,null,null,null,null,null,null,null,null,null,null,null,null,null,null,null,null,null,null,null,null,null,null,null,null,null,null,null,null,null,null,null,null,null,null,null,null,null,null,null,null,null,null,null,null,null,null,null,null,null,null,null,650,null,null,400,null,650,675,750,800,875]
[null,null,null,null,null,null,null,null,null,null,null,null,null,null,null,null,null,null,null,null,null,null,null,null,null,null,null,null,null,null,null,null,null,null,null,null,null,null,null,null,null,null,null,null,null,null,null,null,null,null,null,null,null,null,null,null,null,null,null,null,null,null,null,null,null,null,null,null,655,null,null,405,null,655,680,755,805,880]
[null,null,null,null,null,null,null,null,null,null,null,null,null,null,null,null,null,null,null,null,null,null,null,null,null,null,null,null,null,null,null,null,null,null,null,null,null,null,null,null,null,null,null,null,null,null,null,null,null,null,null,null,null,null,null,null,null,null,null,null,null,null,null,null,null,null,null,null,660,null,null,410,null,660,685,760,810,885]
[null,null,null,null,null,null,null,null,null,null,null,null,null,null,null,null,null,null,null,null,null,null,null,null,null,null,null,null,null,null,null,null,null,null,null,null,null,null,null,null,null,null,null,null,null,null,null,null,null,null,null,null,null,null,null,null,null,null,null,null,null,null,null,null,null,null,null,null,665,null,null,415,null,665,690,765,815,890]
[null,null,null,null,null,null,null,null,null,null,null,null,null,null,null,null,null,null,null,null,null,null,null,null,null,null,null,null,null,null,null,null,null,null,null,null,null,null,null,null,null,null,null,null,null,null,null,null,null,null,null,null,null,null,null,null,null,null,null,null,null,null,null,null,null,null,null,null,670,null,null,420,null,670,695,770,820,895]
[null,null,null,null,null,null,null,null,null,null,null,null,null,null,null,null,null,null,null,null,null,null,null,null,null,null,null,null,null,null,null,null,null,null,null,null,null,null,null,null,null,null,null,null,null,null,null,null,null,null,null,null,null,null,null,null,null,null,null,null,null,null,null,null,null,null,null,null,675,null,null,425,null,675,700,775,825,900]
[null,null,null,null,null,null,null,null,null,null,null,null,null,null,null,null,null,null,null,null,null,null,null,null,null,null,null,null,null,null,null,null,null,null,null,null,null,null,null,null,null,null,null,null,null,null,null,null,null,null,null,null,null,null,null,null,null,null,null,null,null,null,null,null,null,null,null,null,680,null,null,430,null,680,705,780,830,905]
[null,null,null,null,null,null,null,null,null,null,null,null,null,null,null,null,null,null,null,null,null,null,null,null,null,null,null,null,null,null,null,null,null,null,null,null,null,null,null,null,null,null,null,null,null,null,null,null,null,null,null,null,null,null,null,null,null,null,null,null,null,null,null,null,null,null,null,null,685,null,null,435,null,685,710,785,835,910]